Cogmind - Beta 9.4 @@@ ROGUE MODE // 2020.03.21 @ 22:11:01 Player: Valguris Result: Destroyed by 8R-AWN with 8R-AWN's Boregun Performance ------------- Evolutions (1) 500 Regions Visited (5) 1000 Robots Destroyed (65) 325 Value Destroyed (1380) 1380 Prototype IDs (22) 440 Alien Tech Used (0) 0 Bonus (-513) -513 TOTAL SCORE: 3132 Bonus ------- High Alert Combat Kills 40 Friendly Fire -553 Cogmind --------- Core Integrity 0/400 Matter 156/300 Energy 39/100 System Corruption 0% Temperature Cool (0) Movement Core (150) Ox2 Location -9/Exiles Parts ------- > --- POWER (1) -------- (None) > --- PROPULSION (2) --- (None) > --- UTILITY (4) ------ (None) > --- WEAPON (2) ------- Light EM Pulse Cannon Light Cannon > --- INVENTORY (4) ---- High-capacity Storage Unit Large Battery (0) Advanced Beam Cannon Improved Grenade Launcher Peak State ------------ > --- POWER ------------ Light Nuclear Core > --- PROPULSION ------- Light Treads Advanced Treads > --- UTILITY ---------- Cooling System High-capacity Storage Unit Heavy Armor Plating > --- WEAPON ----------- Improved EM Shotgun Improved EM Shotgun > --- INVENTORY -------- Nuclear Core Improved Heat Sink Large Battery Light EM Pulse Cannon Light EM Pulse Cannon Advanced Beam Cannon Advanced Beam Cannon Light Cannon Rocket Launcher Improved Grenade Launcher Datajack [Rating: 24] Favorites ----------- Power Light Nuclear Core Engine Ion Engine Power Core Light Nuclear Core Propulsion Light Treads Treads Light Treads Utility Large Storage Unit Device Cooling System Storage Large Storage Unit Processor Transport Network Coupler Protection Hardened Light Armor Plating Weapon Advanced Beam Cannon Energy Gun Improved EM Shotgun Energy Cannon Advanced Beam Cannon Ballistic Gun Improved Assault Rifle Ballistic Cannon Light Cannon Launcher Rocket Launcher Special Weapon Mining Laser Special Melee Weapon Datajack Build | -11 -10 -10 -9 -9 -9 ------- Run | Scr Mat Min Mat Min Exi Slots Evolved 2 | . . . 2 . . Power . | . . . . . . Propulsion . | . . . . . . Utility 2 | . . . 2 . . Weapon . | . . . . . . Parts Attached 52 | 7 3 2 23 2 15 Power 3 | 1 . 1 . . 1 Engine 1 | 1 . . . . . Core 2 | . . 1 . . 1 Reactor . | . . . . . . Propulsion 6 | 2 . . 3 . 1 Treads 6 | 2 . . 3 . 1 Leg . | . . . . . . Wheel . | . . . . . . Hover . | . . . . . . Flight . | . . . . . . Utility 17 | 2 1 . 9 2 3 Device 3 | . . . 2 1 . Storage 9 | 2 1 . 3 1 2 Processor 1 | . . . 1 . . Hackware . | . . . . . . Protection 4 | . . . 3 . 1 Artifact . | . . . . . . Weapon 26 | 2 2 1 11 . 10 Energy Gun 7 | 2 . . 2 . 3 Energy Cannon 9 | . . . 6 . 3 Ballistic Gun 1 | . . . 1 . . Ballistic Cannon 5 | . 1 1 1 . 2 Launcher 2 | . . . 1 . 1 Special Weapon 1 | . 1 . . . . Impact Weapon . | . . . . . . Slashing Weapon . | . . . . . . Piercing Weapon . | . . . . . . Special Melee Weapon 1 | . . . . . 1 Unidentified Prototypes 3 | . . . 3 . . Parts Lost 12 | . . . . 1 11 Power 2 | . . . . . 2 Propulsion 3 | . . . . . 3 Utility 3 | . . . . 1 2 Weapon 4 | . . . . . 4 Highest Loss Streak 6 | . . . . 1 6 Average Slot Usage (%) 97 | . 100 100 97 99 92 Engine 3 | . 14 12 . . . Core 8 | . . 1 11 11 10 Treads 23 | . 28 28 22 22 20 Device 11 | . . . 9 16 18 Storage 22 | . 28 28 22 22 19 Protection 3 | . . . 9 5 1 Energy Gun 5 | . 23 3 5 . 6 Energy Cannon 8 | . . . 6 22 8 Ballistic Cannon 7 | . 1 24 8 . 1 Special Melee Weapon 1 | . . . . . 5 Naked Turns . | . . . . . . Heaviest Build 77 | 16 22 23 52 68 77 Greatest Support 40 | 40 40 40 40 40 40 Greatest Overweight (x) 7 | 1 . . 1 1 7 Average Overweight (x) . | . . . . 1 1 Largest Inventory Capacity 24 | 8 10 10 16 18 24 Average Capacity 14 | 6 8 10 13 17 16 Most Carried 21 | 6 9 10 16 17 21 Average Carried 13 | 4 7 9 13 16 15 Final Capacity 18 | 8 10 10 16 18 4 Final Carried 17 | 6 9 10 16 17 4 Class Distribution -------------------- 98% | Mutant Dominant Class ---------------- Mutant | -10/Materials Mutant | -10/Mines Mutant | -9/Materials Mutant | -9/Mines Mutant | -9/Exiles Resources | -11 -10 -10 -9 -9 -9 ----------- Run | Scr Mat Min Mat Min Exi Matter Collected 1108 | 250 75 230 523 20 10 Remotely . | . . . . . . Salvage Created 1842 | 51 110 112 1222 324 23 Parts 101 | 2 6 7 77 9 . Haulers Intercepted 6 | . . . 6 . . Recyclers Shooed 6 | . . . 6 . . Parts Field Recycled . | . . . . . . Retrieved Matter . | . . . . . . Parts Self-Destructed . | . . . . . . Prevented . | . . . . . . Kills | -11 -10 -10 -9 -9 -9 ------- Run | Scr Mat Min Mat Min Exi Combat Hostiles Destroyed 42 | . 5 3 21 9 4 Guns 9 | . 5 1 3 . . Cannons 26 | . . 2 17 7 . AOE 7 | . . . 1 2 4 Classes Destroyed 9 | 2 2 1 3 . 1 Worker 7 | 1 . . 6 . . Tunneler 1 | . . . 1 . . Hauler 6 | . . . 6 . . Recycler 4 | 1 . . 2 1 . Watcher 2 | . . . 2 . . Swarmer 7 | . 3 . . 4 . Grunt 28 | . 2 2 19 5 . Sentry 3 | . . 1 2 . . Assembled 7 | . . . . . 7 Best Kill Streak 6 | 1 3 2 6 4 4 Combat Bots Only 4 | . 3 2 3 4 4 Max Kills in Single Turn 3 | 1 1 1 2 2 3 Gunslinging . | . . . . . . Exploded 3 | . . . 1 2 3 Melee . | . . . . . . Uniques/NPCs Destroyed . | . . . . . . Combat | -11 -10 -10 -9 -9 -9 -------- Run | Scr Mat Min Mat Min Exi Damage Taken 2438 | . 206 16 519 213 1484 Core 455 | . 39 16 65 26 309 Absorbed by Shields . | . . . . . . Core Remaining (%) 89 | 100 . 78 . . . Volleys Fired 180 | 4 16 6 73 15 66 Largest 2 | 2 2 2 2 2 2 Hottest 136 | 90 100 85 136 136 101 Shots Fired 301 | 8 30 12 137 29 85 Gun 120 | 8 28 2 36 . 46 Cannon 172 | . . 10 99 29 34 Launcher 7 | . . . 2 . 5 Special 2 | . 2 . . . . Kinetic 84 | . . 10 73 . 1 Thermal 125 | 8 30 2 56 29 . Explosive 7 | . . . 2 . 5 Electromagnetic 85 | . . . 6 . 79 Robot Hit Streak 24 | 3 6 5 24 10 16 Robot Miss Streak 2 | 1 2 1 2 1 2 Penetration Max . | . . . . . . Secondary Targets 1 | . 1 . . . . Max Gunslinging Chain 1 | . 1 . . . . Shots Hit Robots 243 | 5 19 8 89 23 99 Core Hits 96 | 2 8 6 45 13 22 Critical Hits 6 | . . . 2 4 . Critical Kills 1 | . . . 1 . . Critical Parts Destroyed 5 | . . . 1 4 . Melee Attacks 30 | . . . . . 30 Impact . | . . . . . . Slashing . | . . . . . . Piercing . | . . . . . . Sneak Attacks 29 | . . . . . 29 Combat Hostiles . | . . . . . . Follow-up Attacks . | . . . . . . Damage Inflicted 3669 | 66 290 155 1896 755 507 Guns 742 | 62 238 26 381 . 35 Cannons 1937 | . . 117 1292 500 28 Explosions 884 | . 52 . 181 207 444 Melee . | . . . . . . Ramming 106 | 4 . 12 42 48 . Kinetic 1143 | . . 117 1026 . . Thermal 1732 | 62 290 26 647 707 . Explosive 625 | . . . 181 . 444 Electromagnetic 63 | . . . . . 63 Impact . | . . . . . . Slashing . | . . . . . . Piercing . | . . . . . . Highest Corruption . | . . . . . . Average Corruption . | . . . . . . Corruption Purged . | . . . . . . Overload Shots . | . . . . . . Overflow Damage 50 | . . . 1 37 12 Projectiles 4 | . . . 1 3 . Explosions 46 | . . . . 34 12 Melee . | . . . . . . Knockbacks 13 | . . 1 12 . . Impact . | . . . . . . Kinetic 12 | . . 1 11 . . Secondary 1 | . . . 1 . . Self-Inflicted Damage 61 | . 32 . . 29 . Shots 2 | . 1 . . 1 . Rammed 21 | 1 . 1 9 10 . Targets Rammed 24 | 2 . 1 10 11 . Kicked . | . . . . . . Crushed 3 | 1 . . 1 1 . Highest Temperature 306 | 120 306 45 144 138 106 Average Temperature 57 | 61 104 20 45 52 52 Received Heat Transfer 423 | . 54 9 297 63 . Siege Activations . | . . . . . . Robots Corrupted . | . . . . . . Combat Hostiles . | . . . . . . Parts Fried . | . . . . . . Impact Corruptions . | . . . . . . Robots Melted . | . . . . . . Combat Hostiles . | . . . . . . Parts Melted 4 | 1 3 . . . . Heat Transferred 3312 | 173 706 74 1258 1101 . Parts Sabotaged . | . . . . . . Parts Stolen . | . . . . . . Parts Stripped . | . . . . . . Power Chain Reactions . | . . . . . . Missiles Intercepted . | . . . . . . Alert | -11 -10 -10 -9 -9 -9 ------- Run | Scr Mat Min Mat Min Exi Peak Influence 485 | 5 185 92 485 359 . Average Influence 175 | 1 88 38 296 222 . Maximum Alert Level 2 | . . . 2 1 . Low Security (%) 54 | 100 100 100 11 38 . Level 1 41 | . . . 72 61 . Level 2 4 | . . . 15 . . Level 3 . | . . . . . . Level 4 . | . . . . . . Level 5 . | . . . . . . High Security . | . . . . . . Max Security . | . . . . . . Squads Dispatched 6 | . . 1 5 . . Investigation 3 | . . 1 2 . . Extermination . | . . . . . . Reinforcement 3 | . . . 3 . . Assault . | . . . . . . Garrison . | . . . . . . Intercept . | . . . . . . Construction Impeded . | . . . . . . Haulers Reinforced . | . . . . . . Stealth | -11 -10 -10 -9 -9 -9 --------- Run | Scr Mat Min Mat Min Exi Distress Signals 8 | . . . 8 . . Communications Jammed . | . . . . . . Distress Signals . | . . . . . . Times Spotted 64 | . 9 3 39 9 4 Peak Tracking Total 6 | . 3 2 6 4 6 Tactical Retreats 2 | . 1 . 1 . . Traps | -11 -10 -10 -9 -9 -9 ------- Run | Scr Mat Min Mat Min Exi Traps Triggered . | . . . . . . Indirectly . | . . . . . . Trap Hack Attempts . | . . . . . . Triggered . | . . . . . . Disarmed . | . . . . . . Reprogrammed . | . . . . . . Reused . | . . . . . . Traps Extracted . | . . . . . . Installed . | . . . . . . Triggered . | . . . . . . Machines | -11 -10 -10 -9 -9 -9 ---------- Run | Scr Mat Min Mat Min Exi Machines Disabled 7 | . 2 . 1 2 2 Max in Single Turn 2 | . 2 . 1 2 1 Machines Sabotaged . | . . . . . . Garrisons Compromised . | . . . . . . Overloaded Fab Kills . | . . . . . . Fab Network Shutdowns . | . . . . . . Hacking | -11 -10 -10 -9 -9 -9 --------- Run | Scr Mat Min Mat Min Exi Machines Accessed 14 | . 1 1 8 . 4 Terminals 7 | . 1 . 6 . . Fabricators . | . . . . . . Repair Stations . | . . . . . . Recycling Units 2 | . . . 2 . . Scanalyzers . | . . . . . . Garrison Access . | . . . . . . Total Hacks 79 | . 2 1 28 . 48 Successful 67 | . 1 1 17 . 48 Failed 12 | . 1 . 11 . . Catastrophic . | . . . . . . Database Lockouts . | . . . . . . Manual 16 | . 1 . 15 . . Terminals 28 | . 2 . 26 . . Fabricators . | . . . . . . Repair Stations . | . . . . . . Recycling Units 2 | . . . 2 . . Scanalyzers . | . . . . . . Garrison Access . | . . . . . . Terminal Hacks 61 | . 1 1 11 . 48 Record 48 | . . . . . 48 Robot Analysis 3 | . . . 3 . . Prototype ID Bank 3 | . . . 3 . . Open Door 1 | . . 1 . . . Emergency Access Points 1 | . . . 1 . . Locate Traps 3 | . 1 . 2 . . Dispatch Records 1 | . . . 1 . . Hauler Manifests 1 | . . . 1 . . Fabricator Hacks . | . . . . . . Repair Station Hacks . | . . . . . . Recycling Unit Hacks . | . . . . . . Scanalyzer . | . . . . . . Garrison Access Hacks . | . . . . . . Unauthorized Hacks 16 | . 1 . 15 . . Terminals 4 | . . . 4 . . Track 1 | . . . 1 . . Botnet 2 | . . . 2 . . Operators 1 | . . . 1 . . Fabricators . | . . . . . . Repair Stations . | . . . . . . Recycling Units 2 | . . . 2 . . Tunnel 2 | . . . 2 . . Scanalyzers . | . . . . . . Garrison Access . | . . . . . . Data Cores Recovered . | . . . . . . Used . | . . . . . . Hacking Detections 7 | . 1 . 6 . . Full Trace Events . | . . . . . . Feedback Events . | . . . . . . Feedback Blocked . | . . . . . . Robot Schematics Acquired . | . . . . . . Robots Built . | . . . . . . Matter . | . . . . . . Time . | . . . . . . Total Robot Build Rating . | . . . . . . Part Schematics Acquired . | . . . . . . Parts Built . | . . . . . . Matter . | . . . . . . Time . | . . . . . . Total Part Build Rating . | . . . . . . Parts Repaired . | . . . . . . Time . | . . . . . . Parts Recycled . | . . . . . . Recycled Matter . | . . . . . . Retrieved Matter . | . . . . . . Retrieved Components . | . . . . . . Parts Scanalyzed . | . . . . . . Part Schematics Acquired . | . . . . . . Parts Damaged . | . . . . . . Bothacking | -11 -10 -10 -9 -9 -9 ------------ Run | Scr Mat Min Mat Min Exi Used RIF Installer . | . . . . . . Robots Hacked 4 | . . . . . 4 Non-combat 3 | . . . . . 3 Combat 1 | . . . . . 1 Robot Hacks Applied 26 | . . . . . 26 parse_system 26 | . . . . . 26 Relay Couplers Released . | . . . . . . Robots Rewired . | . . . . . . Allies Hacked . | . . . . . . Hacks Repelled . | . . . . . . Allies | -11 -10 -10 -9 -9 -9 -------- Run | Scr Mat Min Mat Min Exi Total Allies . | . . . . . . Largest Group . | . . . . . . Highest-Rated Group . | . . . . . . Highest-Rated Ally . | . . . . . . Total Orders . | . . . . . . Ally Attacks . | . . . . . . Total Damage . | . . . . . . Kills . | . . . . . . Allies Corrupted . | . . . . . . Allies Melted . | . . . . . . Intel | -11 -10 -10 -9 -9 -9 ------- Run | Scr Mat Min Mat Min Exi Robot Analysis Total 3 | . . . 3 . . Derelict Logs Recovered 2 | . . 1 . 1 . Drone Launches . | . . . . . . Drone Recoveries . | . . . . . . Exploration | -11 -10 -10 -9 -9 -9 ------------- Run | Scr Mat Min Mat Min Exi Turns Passed 5065 | 103 229 1019 1052 1072 1590 Spaces Moved 2480 | 47 96 614 433 555 735 Core 8 | 3 . . . . 5 Treads 2472 | 44 96 614 433 555 730 Legs . | . . . . . . Wheels . | . . . . . . Hover . | . . . . . . Flight . | . . . . . . Fastest Speed 50 | 50 160 160 160 180 150 Average Speed 172 | 155 160 160 171 180 179 Slowest Speed 400 | 160 160 160 180 180 400 Overloaded Moves . | . . . . . . Propulsion Burnouts . | . . . . . . Robots Hopped . | . . . . . . Cave-ins Triggered . | . . . . . . Exploration Rate (%) 57 | 5 18 99 47 83 92 Regions Visited 5 Branch Regions 3 Pre-discovered Areas 4 | . . . 2 1 1 Known Exits Taken . | . . . . . . Unknown Exits Taken 5 | 1 1 1 1 1 . Scrap Searched 3 | . . 1 . 2 . Spaces Dug 2 | . 2 . . . . Terrain Destroyed 109 | . 51 . 21 17 20 Melee . | . . . . . . Projectile 3 | . 2 . . 1 . AOE 106 | . 49 . 21 16 20 Actions | -11 -10 -10 -9 -9 -9 --------- Run | Scr Mat Min Mat Min Exi Total 2936 | 65 140 643 602 593 893 Wait 65 | . 16 . 21 6 22 Move 2477 | 47 95 613 432 555 735 Hop . | . . . . . . Pick Up 55 | 6 5 10 20 3 11 Fast Attach 16 | 7 1 1 6 . 1 Attach 9 | . . . 2 1 6 Detach 3 | . 1 . 2 . . Swap 27 | . 2 1 15 1 8 Drop 52 | . 4 11 21 2 14 Fire 180 | 4 16 6 73 15 66 Melee 30 | . . . . . 30 Ram . | . . . . . . Kick . | . . . . . . Crush 22 | 1 . 1 10 10 . Escape Stasis . | . . . . . . Rewire . | . . . . . . Trap . | . . . . . . Miscellaneous . | . . . . . . Route ------- -11/Scrapyard -10/Materials -10/Mines (discovered 2 exits: *Mat x2) -9/Materials -9/Mines (discovered 4 exits: [*Mat x2] / *Exi / [*Zio]) -9/Exiles (discovered 2 exits: [*Min x2]) History --------- Turn | Location | Event 13 | -11/Scrapyard | Discovered new exit (range 16) 104 | -11/Scrapyard | Entered Materials 324 | -10/Materials | Build established: Mutant 325 | -10/Materials | Discovered new exit (range 6) 333 | -10/Materials | Entered Mines 493 | -10/Mines | Discovered new exit (range 5) 591 | -10/Mines | Joined a pair of Derelicts in attacking an 0b10 outpost 1185 | -10/Mines | Discovered new exit (range 13) 1217 | -10/Mines | Learned Materials stockpile data 1244 | -10/Mines | Met a Derelict shopkeep closing up shop 1352 | -10/Mines | Entered Materials 1352 | -9/Materials | Evolved 2 slots: Utility x2 1896 | -9/Materials | Discovered new exit (range 16) 2404 | -9/Materials | Entered Mines 2534 | -9/Mines | Learned Materials garrison access intel 2564 | -9/Mines | Discovered new exit (range 9) 2687 | -9/Mines | Deemed a non-threat by the Exiles lab entrance 2687 | -9/Mines | Discovered new exit (range 5) 2998 | -9/Mines | Received a Rocket Launcher from a helpful Derelict 3043 | -9/Mines | Discovered new exit (range 13) 3044 | -9/Mines | A Derelict revealed a hidden shortcut to a safe place 3090 | -9/Mines | Learned location of Storage (-9) 3476 | -9/Mines | Entered Exiles 3500 | -9/Exiles | Discovered new exit (range 15) 3556 | -9/Exiles | Met 8R-AWN 3588 | -9/Exiles | Met EX-HEX 3713 | -9/Exiles | Met EX-BIN 3935 | -9/Exiles | Learned location of Zion (-7) 3955 | -9/Exiles | Met EX-DEC 4098 | -9/Exiles | Visited The Gauntlet 4422 | -9/Exiles | Discovered new exit (range 15) 4779 | -9/Exiles | Attacked by the Exiles 4855 | -9/Exiles | Lost 3 parts (1p1n1w) 4883 | -9/Exiles | Core integrity fell below 50% 4965 | -9/Exiles | Lost 6 parts (1p1n2u2w) 5050 | -9/Exiles | Core integrity fell below 20% 5066 | -9/Exiles | Destroyed by 8R-AWN with 8R-AWN's Boregun Last Messages --------------- 05045_ HV Slug penetrates Wall. 05045_ Penetrated by HV Slug. 05045_ HV Slug penetrates Wall. 05049_ Penetrated by HV Slug. 05049_ HV Slug penetrates Wall. 05053_ Penetrated by HV Slug. 05053_ HV Slug penetrates Wall. 05053_ Penetrated by HV Slug. 05053_ HV Slug penetrates Wall. 05055_ Acquired Adv. Beam Cannon. 05058_ Penetrated by HV Slug. 05058_ HV Slug penetrates Wall. 05058_ Penetrated by HV Slug. 05058_ HV Slug penetrates Earth. 05062_ Penetrated by HV Slug. 05062_ HV Slug penetrates Earth. 05062_ Penetrated by HV Slug. 05062_ HV Slug penetrates Earth. 05062_ Dropped Lrg. Storage Unit. 05066_ Penetrated by HV Slug. Map ----- +----------------------------------------------------+ | ??????????????????????????????????????????????? | | ??????????????????????????????????????????????? | | ??????????????????????????????????????????????? | | ??????????????????????????????????????????????? | | ??????????????????????????????????????????????? | | ??????????????????????????????????????????????? | | ??????????????????????????????????????????????? | | ??????????????????????????????????????????????? | | ??????????????????????????????????????????????? | | ??????????????????????????????????????????????? | | ??????????????????????????????????????????????? | | ??????????????????????????####????????????????? | | ?????????????????????????## #????????????????? | | ????????????????????????## #????????????????? | | ????????????????????????# < #????????????????? | | ????????????????????????# #????????????????? | | ????????????????????????# #????????????????? | | ???????????????????????## ##????????????????? | | ??????????????????????## ##????????????????? | | ??????????????????????# #????????????????? | | ??#####???????????????# #????????????????? | | ?##" #??????????????## #????????????????? | | ?#" #?????????????## # #????????????????? | | ##" ##????????????# ###????????????????? | | # ###????????### ##??????????????????? | | ########## @#???????????????????? | | #""""#; ##???????????????????? | | ]#"#??????????????????? | | "" !!/#???????????????????? | | #### ]]]##??????????????????? | | ""#?#"""""#### g !] ###????????????????? | | "##?#######??#### ###??????????????? | | ##??????????????###;# ##?????????????? | | ??????????????????####" * #?????????????? | | ?????????????????????#### * #?????????????? | | ????????????????????????### * #?????????????? | | ?????????????????????????#" ##????????????? | | ?????????????????????????#### ###??????????? | | ????????????????????????????# ##?????????? | | ????????????????????????????## ###???????? | | ?????????????????????????????### #???????? | | ???????????????????????????????# ##???????? | | ???????????????????????????????## ##????????? | | ????????????????????????????????#####?????????? | | ??????????????????????????????????????????????? | | ??????????????????????????????????????????????? | | ??????????????????????????????????????????????? | | ??????????????????????????????????????????????? | | ??????????????????????????????????????????????? | | ??????????????????????????????????????????????? | +----------------------------------------------------+ Best States ------------- Heat Dissipation 64 Energy Generation 14 Energy Capacity 250 Matter Stores 300 Matter Capacity 300 Sight Range 16 Terrain Scan Density 10 Armor Coverage 600 Evasion (%) 40 Recoil Reduction 2 Item Schematics ----------------- None Robot Schematics ------------------ None Fabricated ------------ Nothing Alien Tech Used ----------------- None Achievements -------------- None Challenges ------------ None Game ------ Seed DecoderHardenedMantle Manual? 0 Play Time 00:45:31 Cumulative 1101.9 hours Start 2020.03.21 @ 21:23:03 End 2020.03.21 @ 22:11:01 Sessions 1 Manual Loads 0 Difficulty Rogue Special Mode None Game No. 384 Rogue 384 Adventurer 0 Explorer 0 Win Type - Total 250 Types 214/6/11/3/3/2/11 Lore% 99 Gallery% 100 Achievement% 93 Wizard Run 0 Options --------- ASCII 0 Keyboard 0 Movement Numpad Keybinds 0 Fullscreen 1 Font 18/Terminus Map View 76x50 Tactical HUD 1 Map Filters NONE Filters NONE Steam 1 RUN: b35fb756-b2cf-46d4-95bf-94b831568b4f